[Event "Titled Tuesday Blitz June 27 Early 2023"]
[White "Rodriguez Santiago, Jaime"]
[Black "robertoalejandro10"]
[WhiteFideId "3100898"]
[WhiteElo "2267"]
[BlackElo "2615"]
[Result "1/2-1/2"]
[Round "1"]
[TimeControl "180+2"]
[Date "2023.06.27"]
[WhiteClock "0:00:06"]
[BlackClock "0:00:04"]
[Board "184"]

1. d4 {[%clk 0:02:50]}  Nf6 {[%clk 0:02:55]} 2. c4 {[%clk 0:02:49]}  g6 {[%clk 0:02:51]} 3. Nc3 {[%clk 0:02:49]}  c5 {[%clk 0:02:46]} 4. d5 {[%clk 0:02:49]}  d6 {[%clk 0:02:46]} 5. e4 {[%clk 0:02:48]}  Bg7 {[%clk 0:02:46]} 6. h3 {[%clk 0:02:45]}  O-O {[%clk 0:02:45]} 7. Nf3 {[%clk 0:02:44]}  Na6 {[%clk 0:02:38]} 8. Bd3 {[%clk 0:02:36]}  Nc7 {[%clk 0:02:36]} 9. O-O {[%clk 0:02:36]}  Bd7 {[%clk 0:02:35]} 10. a4 {[%clk 0:02:34]}  Rb8 {[%clk 0:02:33]} 11. Bf4 {[%clk 0:02:30]}  a6 {[%clk 0:02:32]} 12. Qd2 {[%clk 0:02:16]}  b5 {[%clk 0:02:29]} 13. e5 {[%clk 0:02:01]}  Nfe8 {[%clk 0:02:28]} 14. Rfe1 {[%clk 0:01:45]}  bxc4 {[%clk 0:02:13]} 15. Bxc4 {[%clk 0:01:43]}  Rb4 {[%clk 0:01:52]} 16. b3 {[%clk 0:01:41]}  Rb6 {[%clk 0:01:24]} 17. Bh6 {[%clk 0:01:37]}  e6 {[%clk 0:01:10]} 18. Bxg7 {[%clk 0:01:36]}  Kxg7 {[%clk 0:01:10]} 19. dxe6 {[%clk 0:01:16]}  Bxe6 {[%clk 0:01:06]} 20. Rad1 {[%clk 0:01:04]}  Qc8 {[%clk 0:00:25]} 21. exd6 {[%clk 0:00:57]}  Rxd6 {[%clk 0:00:23]} 22. Qe2 {[%clk 0:00:57]}  Rxd1 {[%clk 0:00:23]} 23. Rxd1 {[%clk 0:00:57]}  Bxc4 {[%clk 0:00:20]} 24. Qxc4 {[%clk 0:00:57]}  Ne6 {[%clk 0:00:21]} 25. Ne4 {[%clk 0:00:53]}  Qc6 {[%clk 0:00:15]} 26. Ne5 {[%clk 0:00:49]}  Qc7 {[%clk 0:00:12]} 27. Nd7 {[%clk 0:00:48]}  Kg8 {[%clk 0:00:05]} 28. Nxf8 {[%clk 0:00:44]}  Kxf8 {[%clk 0:00:06]} 29. Rc1 {[%clk 0:00:39]}  Nd6 {[%clk 0:00:05]} 30. Nxd6 {[%clk 0:00:35]}  Qxd6 {[%clk 0:00:06]} 31. Qe2 {[%clk 0:00:33]}  Nd4 {[%clk 0:00:05]} 32. Qc4 {[%clk 0:00:29]}  Qe5 {[%clk 0:00:04]} 33. Kf1 {[%clk 0:00:27]}  Qg5 {[%clk 0:00:04]} 34. Qxc5+ {[%clk 0:00:27]}  Qxc5 {[%clk 0:00:02]} 35. Rxc5 {[%clk 0:00:28]}  Nxb3 {[%clk 0:00:02]} 36. Rc6 {[%clk 0:00:25]}  a5 {[%clk 0:00:02]} 37. Rb6 {[%clk 0:00:24]}  Nc5 {[%clk 0:00:02]} 38. Rb5 {[%clk 0:00:24]}  Nxa4 {[%clk 0:00:02]} 39. Rxa5 {[%clk 0:00:24]}  Nc3 {[%clk 0:00:03]} 40. Ra7 {[%clk 0:00:23]}  Ne4 {[%clk 0:00:03]} 41. f3 {[%clk 0:00:22]}  Ng5 {[%clk 0:00:03]} 42. Kf2 {[%clk 0:00:22]}  Ne6 {[%clk 0:00:04]} 43. g4 {[%clk 0:00:22]}  Kg7 {[%clk 0:00:05]} 44. Kg3 {[%clk 0:00:21]}  h6 {[%clk 0:00:05]} 45. f4 {[%clk 0:00:20]}  Kf6 {[%clk 0:00:06]} 46. h4 {[%clk 0:00:20]}  Nc5 {[%clk 0:00:05]} 47. Rc7 {[%clk 0:00:19]}  Ne4+ {[%clk 0:00:05]} 48. Kf3 {[%clk 0:00:20]}  Nd6 {[%clk 0:00:03]} 49. Rc6 {[%clk 0:00:20]}  Ke7 {[%clk 0:00:04]} 50. Rc7+ {[%clk 0:00:18]}  Ke6 {[%clk 0:00:04]} 51. h5 {[%clk 0:00:13]}  gxh5 {[%clk 0:00:04]} 52. gxh5 {[%clk 0:00:13]}  Nb5 {[%clk 0:00:04]} 53. Rc8 {[%clk 0:00:13]}  Nd4+ {[%clk 0:00:03]} 54. Kg4 {[%clk 0:00:14]}  Nf5 {[%clk 0:00:03]} 55. Rh8 {[%clk 0:00:14]}  Kf6 {[%clk 0:00:03]} 56. Ra8 {[%clk 0:00:13]}  Ne3+ {[%clk 0:00:03]} 57. Kf3 {[%clk 0:00:13]}  Nf5 {[%clk 0:00:04]} 58. Ra6+ {[%clk 0:00:13]}  Kg7 {[%clk 0:00:04]} 59. Ke4 {[%clk 0:00:13]}  Ng3+ {[%clk 0:00:04]} 60. Ke5 {[%clk 0:00:13]}  Nxh5 {[%clk 0:00:05]} 61. f5 {[%clk 0:00:13]}  Ng3 {[%clk 0:00:05]} 62. f6+ {[%clk 0:00:13]}  Kg6 {[%clk 0:00:05]} 63. Ra4 {[%clk 0:00:13]}  h5 {[%clk 0:00:04]} 64. Rh4 {[%clk 0:00:12]}  Kg5 {[%clk 0:00:01]} 65. Rh2 {[%clk 0:00:10]}  h4 {[%clk 0:00:02]} 66. Ra2 {[%clk 0:00:09]}  Kg4 {[%clk 0:00:03]} 67. Ra7 {[%clk 0:00:09]}  h3 {[%clk 0:00:03]} 68. Rxf7 {[%clk 0:00:09]}  h2 {[%clk 0:00:03]} 69. Rg7+ {[%clk 0:00:09]}  Kh4 {[%clk 0:00:03]} 70. f7 {[%clk 0:00:07]}  h1=Q {[%clk 0:00:03]} 71. Rh7+ {[%clk 0:00:07]}  Nh5 {[%clk 0:00:03]} 72. f8=Q {[%clk 0:00:08]}  Qe1+ {[%clk 0:00:03]} 73. Kd5 {[%clk 0:00:08]}  Qd2+ {[%clk 0:00:03]} 74. Ke6 {[%clk 0:00:08]}  Qe3+ {[%clk 0:00:03]} 75. Kd7 {[%clk 0:00:08]}  Qd3+ {[%clk 0:00:03]} 76. Ke8 {[%clk 0:00:08]}  Qxh7 {[%clk 0:00:03]} 77. Qe7+ {[%clk 0:00:05]}  Kg4 {[%clk 0:00:03]} 78. Qxh7 {[%clk 0:00:05]}  Nf6+ {[%clk 0:00:03]} 79. Kf7 {[%clk 0:00:06]}  Nxh7 {[%clk 0:00:04]} 1/2-1/2


[Site "https://www.chess.com"]

[Event "Titled Tuesday Blitz June 27 Early 2023"]
[White "ATM622"]
[Black "Acikel, Mert"]
[BlackFideId "12956465"]
[WhiteElo "2614"]
[BlackElo "2267"]
[Result "1/2-1/2"]
[Round "1"]
[TimeControl "180+2"]
[Date "2023.06.27"]
[WhiteClock "0:00:11"]
[BlackClock "0:00:06"]
[Board "185"]

1. d4 {[%clk 0:03:00]}  d5 {[%clk 0:02:59]} 2. c4 {[%clk 0:03:01]}  e6 {[%clk 0:02:59]} 3. Nf3 {[%clk 0:03:00]}  Nf6 {[%clk 0:02:59]} 4. Nbd2 {[%clk 0:03:00]}  Be7 {[%clk 0:02:57]} 5. Qc2 {[%clk 0:03:00]}  Nbd7 {[%clk 0:02:53]} 6. g3 {[%clk 0:03:01]}  O-O {[%clk 0:02:52]} 7. Bg2 {[%clk 0:03:01]}  b6 {[%clk 0:02:50]} 8. O-O {[%clk 0:03:01]}  Bb7 {[%clk 0:02:49]} 9. b3 {[%clk 0:03:01]}  c5 {[%clk 0:02:48]} 10. Bb2 {[%clk 0:03:02]}  Rc8 {[%clk 0:02:47]} 11. Rac1 {[%clk 0:03:01]}  Qc7 {[%clk 0:02:25]} 12. Rfd1 {[%clk 0:02:58]}  Qb8 {[%clk 0:02:22]} 13. Qb1 {[%clk 0:02:58]}  Rfd8 {[%clk 0:02:22]} 14. cxd5 {[%clk 0:02:49]}  exd5 {[%clk 0:02:19]} 15. e3 {[%clk 0:02:41]}  a6 {[%clk 0:02:09]} 16. h4 {[%clk 0:02:38]}  h6 {[%clk 0:02:06]} 17. Bh3 {[%clk 0:02:37]}  Rc6 {[%clk 0:01:42]} 18. Ne5 {[%clk 0:02:35]}  Nxe5 {[%clk 0:01:40]} 19. dxe5 {[%clk 0:02:35]}  Nd7 {[%clk 0:01:36]} 20. Nf3 {[%clk 0:02:34]}  Nf8 {[%clk 0:01:33]} 21. Bg2 {[%clk 0:01:49]}  Bc8 {[%clk 0:01:23]} 22. Nd4 {[%clk 0:01:45]}  Rc7 {[%clk 0:01:19]} 23. Ne2 {[%clk 0:01:38]}  Be6 {[%clk 0:01:13]} 24. Nc3 {[%clk 0:01:36]}  Rcd7 {[%clk 0:01:12]} 25. Ne2 {[%clk 0:01:34]}  Ng6 {[%clk 0:01:05]} 26. Nf4 {[%clk 0:01:30]}  Nxf4 {[%clk 0:01:04]} 27. exf4 {[%clk 0:01:30]}  d4 {[%clk 0:01:00]} 28. Qd3 {[%clk 0:01:26]}  b5 {[%clk 0:00:56]} 29. f5 {[%clk 0:01:23]}  c4 {[%clk 0:00:47]} 30. Qe4 {[%clk 0:01:17]}  Bd5 {[%clk 0:00:47]} 31. Qg4 {[%clk 0:01:16]}  Bxg2 {[%clk 0:00:48]} 32. f6 {[%clk 0:01:12]}  Bf8 {[%clk 0:00:45]} 33. e6 {[%clk 0:00:57]}  fxe6 {[%clk 0:00:29]} 34. Qxe6+ {[%clk 0:00:55]}  Rf7 {[%clk 0:00:29]} 35. Kxg2 {[%clk 0:00:46]}  c3 {[%clk 0:00:17]} 36. Ba1 {[%clk 0:00:39]}  Qc8 {[%clk 0:00:17]} 37. Qxc8 {[%clk 0:00:35]}  Rxc8 {[%clk 0:00:17]} 38. Rxd4 {[%clk 0:00:36]}  Rxf6 {[%clk 0:00:18]} 39. Rxc3 {[%clk 0:00:31]}  Rxc3 {[%clk 0:00:13]} 40. Bxc3 {[%clk 0:00:31]}  Rc6 {[%clk 0:00:13]} 41. Rd3 {[%clk 0:00:29]}  Bd6 {[%clk 0:00:08]} 42. Kf3 {[%clk 0:00:24]}  Kf7 {[%clk 0:00:07]} 43. Ke4 {[%clk 0:00:24]}  Be7 {[%clk 0:00:04]} 44. Ke3 {[%clk 0:00:20]}  Re6+ {[%clk 0:00:04]} 45. Kd2 {[%clk 0:00:20]}  Bf6 {[%clk 0:00:04]} 46. Bxf6 {[%clk 0:00:19]}  Kxf6 {[%clk 0:00:05]} 47. Rd5 {[%clk 0:00:18]}  Rc6 {[%clk 0:00:05]} 48. h5 {[%clk 0:00:16]}  Re6 {[%clk 0:00:05]} 49. Kd3 {[%clk 0:00:15]}  Rc6 {[%clk 0:00:05]} 50. Kd2 {[%clk 0:00:13]}  Re6 {[%clk 0:00:05]} 51. Rc5 {[%clk 0:00:13]}  Rd6+ {[%clk 0:00:05]} 52. Kc2 {[%clk 0:00:12]}  Re6 {[%clk 0:00:06]} 53. Rd5 {[%clk 0:00:13]}  Rc6+ {[%clk 0:00:06]} 54. Kd2 {[%clk 0:00:11]} 1/2-1/2


[Site "https://www.chess.com"]

[Event "Titled Tuesday Blitz June 27 Early 2023"]
[White "Domingo Nunez, Alejandro"]
[Black "De Souza, Cristiano Gomes"]
[WhiteFideId "22245561"]
[BlackFideId "2151758"]
[WhiteElo "2608"]
[BlackElo "2260"]
[Result "1-0"]
[Round "1"]
[TimeControl "180+2"]
[Date "2023.06.27"]
[WhiteClock "0:00:46"]
[BlackClock "0:00:47"]
[Board "189"]

1. Nf3 {[%clk 0:02:58]}  Nf6 {[%clk 0:02:58]} 2. g3 {[%clk 0:02:58]}  g6 {[%clk 0:02:59]} 3. b3 {[%clk 0:02:59]}  Bg7 {[%clk 0:02:59]} 4. Bb2 {[%clk 0:02:59]}  O-O {[%clk 0:03:00]} 5. Bg2 {[%clk 0:02:59]}  d5 {[%clk 0:03:00]} 6. c4 {[%clk 0:02:59]}  dxc4 {[%clk 0:02:57]} 7. bxc4 {[%clk 0:02:59]}  Na6 {[%clk 0:02:58]} 8. O-O {[%clk 0:02:52]}  c6 {[%clk 0:02:49]} 9. d4 {[%clk 0:02:39]}  Be6 {[%clk 0:02:45]} 10. Nbd2 {[%clk 0:02:39]}  Qc7 {[%clk 0:02:34]} 11. e4 {[%clk 0:02:23]}  Rfd8 {[%clk 0:02:33]} 12. h3 {[%clk 0:02:02]}  h6 {[%clk 0:02:27]} 13. d5 {[%clk 0:01:54]}  Bc8 {[%clk 0:02:22]} 14. Rc1 {[%clk 0:01:48]}  Nc5 {[%clk 0:02:19]} 15. Qc2 {[%clk 0:01:48]}  Ne8 {[%clk 0:02:05]} 16. Bxg7 {[%clk 0:01:08]}  Nxg7 {[%clk 0:02:04]} 17. Rfe1 {[%clk 0:01:05]}  Bd7 {[%clk 0:01:48]} 18. Qc3 {[%clk 0:01:05]}  Be8 {[%clk 0:01:42]} 19. Qe3 {[%clk 0:01:04]}  b6 {[%clk 0:01:35]} 20. Qxh6 {[%clk 0:01:00]}  Nd3 {[%clk 0:01:34]} 21. Ng5 {[%clk 0:01:00]}  e6 {[%clk 0:01:23]} 22. Qh7+ {[%clk 0:00:58]}  Kf8 {[%clk 0:01:23]} 23. Qh8+ {[%clk 0:00:57]}  Ke7 {[%clk 0:01:23]} 24. Qxg7 {[%clk 0:00:57]}  Nxe1 {[%clk 0:01:21]} 25. Nxe6 {[%clk 0:00:53]}  Qd6 {[%clk 0:01:10]} 26. Rxe1 {[%clk 0:00:51]}  Bd7 {[%clk 0:00:47]} 27. e5 {[%clk 0:00:46]} 1-0


[Site "https://www.chess.com"]

[Event "Titled Tuesday Blitz June 27 Early 2023"]
[White "Vdovin, Vadim"]
[Black "EdmundPlayer"]
[WhiteFideId "24107158"]
[WhiteElo "2607"]
[BlackElo "2252"]
[Result "1-0"]
[Round "1"]
[TimeControl "180+2"]
[Date "2023.06.27"]
[WhiteClock "0:00:05"]
[BlackClock "0:00:00"]
[Board "191"]

1. e4 {[%clk 0:03:00]}  e6 {[%clk 0:02:52]} 2. d4 {[%clk 0:03:00]}  d5 {[%clk 0:02:52]} 3. Nc3 {[%clk 0:03:01]}  Bb4 {[%clk 0:02:49]} 4. e5 {[%clk 0:03:01]}  c5 {[%clk 0:02:45]} 5. a3 {[%clk 0:03:01]}  Bxc3+ {[%clk 0:02:44]} 6. bxc3 {[%clk 0:03:02]}  Ne7 {[%clk 0:02:44]} 7. Qg4 {[%clk 0:03:01]}  Qc7 {[%clk 0:02:45]} 8. Bd3 {[%clk 0:03:01]}  c4 {[%clk 0:02:42]} 9. Be2 {[%clk 0:02:57]}  Nf5 {[%clk 0:02:26]} 10. a4 {[%clk 0:02:44]}  Nc6 {[%clk 0:02:24]} 11. Nf3 {[%clk 0:02:39]}  Nce7 {[%clk 0:02:00]} 12. h4 {[%clk 0:02:34]}  Bd7 {[%clk 0:01:50]} 13. h5 {[%clk 0:02:24]}  O-O-O {[%clk 0:01:44]} 14. Qf4 {[%clk 0:02:20]}  h6 {[%clk 0:01:39]} 15. g4 {[%clk 0:02:18]}  g5 {[%clk 0:01:39]} 16. Qh2 {[%clk 0:01:45]}  Ng7 {[%clk 0:01:38]} 17. Ba3 {[%clk 0:01:44]}  Ng8 {[%clk 0:01:30]} 18. Kd2 {[%clk 0:01:36]}  Bxa4 {[%clk 0:01:23]} 19. Bd6 {[%clk 0:01:34]}  Qc6 {[%clk 0:01:21]} 20. Rhb1 {[%clk 0:01:33]}  b5 {[%clk 0:01:17]} 21. Qg3 {[%clk 0:01:14]}  Ne8 {[%clk 0:01:15]} 22. Bc5 {[%clk 0:01:07]}  Rd7 {[%clk 0:01:14]} 23. Nh2 {[%clk 0:00:59]}  a5 {[%clk 0:00:56]} 24. Nf1 {[%clk 0:00:47]}  Nc7 {[%clk 0:00:54]} 25. Ne3 {[%clk 0:00:39]}  Na6 {[%clk 0:00:52]} 26. Bd6 {[%clk 0:00:39]}  f6 {[%clk 0:00:45]} 27. f4 {[%clk 0:00:37]}  fxe5 {[%clk 0:00:40]} 28. fxe5 {[%clk 0:00:37]}  Rf7 {[%clk 0:00:37]} 29. Rf1 {[%clk 0:00:32]}  Rhh7 {[%clk 0:00:37]} 30. Rxf7 {[%clk 0:00:24]}  Rxf7 {[%clk 0:00:36]} 31. Rf1 {[%clk 0:00:24]}  Qe8 {[%clk 0:00:36]} 32. Rf3 {[%clk 0:00:16]}  b4 {[%clk 0:00:27]} 33. Nxc4 {[%clk 0:00:11]}  dxc4 {[%clk 0:00:21]} 34. Bxc4 {[%clk 0:00:12]}  Bc6 {[%clk 0:00:11]} 35. Bxa6+ {[%clk 0:00:11]}  Kd7 {[%clk 0:00:11]} 36. Rxf7+ {[%clk 0:00:08]}  Qxf7 {[%clk 0:00:12]} 37. Be2 {[%clk 0:00:08]}  Ne7 {[%clk 0:00:11]} 38. Bxe7 {[%clk 0:00:08]}  Kxe7 {[%clk 0:00:10]} 39. Qd3 {[%clk 0:00:08]}  Qf4+ {[%clk 0:00:08]} 40. Ke1 {[%clk 0:00:05]}  bxc3 {[%clk 0:00:03]} 41. Qxc3 {[%clk 0:00:05]}  Qe4 {[%clk 0:00:04]} 42. Kd2 {[%clk 0:00:04]}  Qf4+ {[%clk 0:00:03]} 43. Ke1 {[%clk 0:00:04]}  Qe4 {[%clk 0:00:04]} 44. Qc5+ {[%clk 0:00:05]}  Kf7 {[%clk 0:00:03]} 45. Kd2 {[%clk 0:00:05]}  Qf4+ {[%clk 0:00:03]} 46. Kc3 {[%clk 0:00:06]}  Qe3+ {[%clk 0:00:02]} 47. Bd3 {[%clk 0:00:07]}  Be4 {[%clk 0:00:02]} 48. Qxa5 {[%clk 0:00:07]}  Bxd3 {[%clk 0:00:02]} 49. Qa7+ {[%clk 0:00:05]}  Ke8 {[%clk 0:00:01]} 50. cxd3 {[%clk 0:00:06]}  Qc1+ {[%clk 0:00:01]} 51. Kb4 {[%clk 0:00:06]}  Qb2+ {[%clk 0:00:01]} 52. Kc5 {[%clk 0:00:05]}  Qc3+ {[%clk 0:00:02]} 53. Kd6 {[%clk 0:00:05]}  Qb4+ {[%clk 0:00:00]} 54. Kxe6 {[%clk 0:00:05]} 1-0


[Site "https://www.chess.com"]

[Event "Titled Tuesday Blitz June 27 Early 2023"]
[White "Fudalej, Michal"]
[Black "Colas, Joshua"]
[WhiteFideId "1118781"]
[BlackFideId "2044447"]
[WhiteElo "2251"]
[BlackElo "2607"]
[Result "0-1"]
[Round "1"]
[TimeControl "180+2"]
[Date "2023.06.27"]
[WhiteClock "0:00:09"]
[BlackClock "0:01:03"]
[Board "192"]

1. Nf3 {[%clk 0:02:54]}  Nf6 {[%clk 0:02:52]} 2. g3 {[%clk 0:02:52]}  g6 {[%clk 0:02:51]} 3. Bg2 {[%clk 0:02:52]}  Bg7 {[%clk 0:02:51]} 4. c4 {[%clk 0:02:52]}  O-O {[%clk 0:02:52]} 5. Nc3 {[%clk 0:02:51]}  c5 {[%clk 0:02:47]} 6. d4 {[%clk 0:02:51]}  cxd4 {[%clk 0:02:46]} 7. Nxd4 {[%clk 0:02:52]}  Nc6 {[%clk 0:02:44]} 8. c5 {[%clk 0:02:52]}  Nxd4 {[%clk 0:02:29]} 9. Qxd4 {[%clk 0:02:53]}  d6 {[%clk 0:02:29]} 10. cxd6 {[%clk 0:02:52]}  Ne8 {[%clk 0:02:30]} 11. Qh4 {[%clk 0:02:21]}  Nxd6 {[%clk 0:02:29]} 12. O-O {[%clk 0:02:16]}  h5 {[%clk 0:02:16]} 13. Bg5 {[%clk 0:02:06]}  f6 {[%clk 0:02:06]} 14. Be3 {[%clk 0:01:52]}  Bg4 {[%clk 0:02:06]} 15. Rfd1 {[%clk 0:01:44]}  g5 {[%clk 0:01:59]} 16. Bxg5 {[%clk 0:01:33]}  fxg5 {[%clk 0:02:00]} 17. Qxg5 {[%clk 0:01:34]}  Qb6 {[%clk 0:01:51]} 18. e3 {[%clk 0:01:04]}  Qxb2 {[%clk 0:01:50]} 19. Bd5+ {[%clk 0:01:03]}  Kh8 {[%clk 0:01:49]} 20. Qxe7 {[%clk 0:00:45]}  Qxf2+ {[%clk 0:01:16]} 21. Kh1 {[%clk 0:00:45]}  Nf5 {[%clk 0:01:11]} 22. Qxb7 {[%clk 0:00:26]}  Nxe3 {[%clk 0:01:07]} 23. Re1 {[%clk 0:00:09]}  Nxd5 {[%clk 0:01:03]} 0-1


[Site "https://www.chess.com"]

[Event "Titled Tuesday Blitz June 27 Early 2023"]
[White "MKlose11"]
[Black "Abrosimov, Vladimir"]
[BlackFideId "4166892"]
[WhiteElo "2607"]
[BlackElo "2246"]
[Result "1-0"]
[Round "1"]
[TimeControl "180+2"]
[Date "2023.06.27"]
[WhiteClock "0:00:27"]
[BlackClock "0:00:51"]
[Board "193"]

1. e4 {[%clk 0:02:54]}  c5 {[%clk 0:02:59]} 2. Nc3 {[%clk 0:02:52]}  d6 {[%clk 0:02:59]} 3. g3 {[%clk 0:02:53]}  e6 {[%clk 0:02:58]} 4. Bg2 {[%clk 0:02:53]}  Ne7 {[%clk 0:02:59]} 5. d3 {[%clk 0:02:54]}  g6 {[%clk 0:02:59]} 6. Be3 {[%clk 0:02:53]}  Bg7 {[%clk 0:02:59]} 7. Qd2 {[%clk 0:02:53]}  b6 {[%clk 0:02:58]} 8. Bh6 {[%clk 0:02:53]}  O-O {[%clk 0:02:57]} 9. h4 {[%clk 0:02:53]}  f6 {[%clk 0:02:54]} 10. Bxg7 {[%clk 0:02:39]}  Kxg7 {[%clk 0:02:54]} 11. h5 {[%clk 0:02:39]}  g5 {[%clk 0:02:54]} 12. e5 {[%clk 0:02:39]}  d5 {[%clk 0:02:53]} 13. exf6+ {[%clk 0:02:39]}  Kxf6 {[%clk 0:02:53]} 14. f4 {[%clk 0:02:33]}  g4 {[%clk 0:02:50]} 15. O-O-O {[%clk 0:02:17]}  Nf5 {[%clk 0:02:47]} 16. Nge2 {[%clk 0:02:13]}  Bb7 {[%clk 0:02:45]} 17. d4 {[%clk 0:02:14]}  c4 {[%clk 0:02:44]} 18. Rde1 {[%clk 0:02:06]}  a6 {[%clk 0:02:41]} 19. Kb1 {[%clk 0:02:06]}  Nc6 {[%clk 0:02:40]} 20. Nd1 {[%clk 0:02:05]}  Qd7 {[%clk 0:02:37]} 21. Ne3 {[%clk 0:02:05]}  h6 {[%clk 0:02:35]} 22. Nxg4+ {[%clk 0:01:59]}  Kg7 {[%clk 0:02:33]} 23. Ne5 {[%clk 0:01:56]}  Nxe5 {[%clk 0:02:33]} 24. fxe5 {[%clk 0:01:57]}  Kh7 {[%clk 0:02:24]} 25. Bh3 {[%clk 0:01:48]}  Qg7 {[%clk 0:02:22]} 26. Bxf5+ {[%clk 0:01:41]}  Rxf5 {[%clk 0:02:21]} 27. Nf4 {[%clk 0:01:39]}  Bc8 {[%clk 0:02:19]} 28. Reg1 {[%clk 0:01:33]}  a5 {[%clk 0:02:14]} 29. g4 {[%clk 0:01:30]}  Rg5 {[%clk 0:02:12]} 30. Qe2 {[%clk 0:01:14]}  Bd7 {[%clk 0:02:11]} 31. Nh3 {[%clk 0:01:14]}  Rf8 {[%clk 0:02:05]} 32. Nxg5+ {[%clk 0:01:14]}  Qxg5 {[%clk 0:02:05]} 33. a3 {[%clk 0:01:09]}  Rf4 {[%clk 0:02:03]} 34. Qe3 {[%clk 0:01:04]}  Rf1+ {[%clk 0:01:58]} 35. Rxf1 {[%clk 0:01:03]}  Qxe3 {[%clk 0:01:58]} 36. Rf7+ {[%clk 0:01:04]}  Kg8 {[%clk 0:01:59]} 37. Rxd7 {[%clk 0:01:05]}  Qxd4 {[%clk 0:01:57]} 38. g5 {[%clk 0:00:57]}  Qf4 {[%clk 0:01:26]} 39. g6 {[%clk 0:00:40]}  Qf3 {[%clk 0:01:24]} 40. Rg1 {[%clk 0:00:36]}  Qxh5 {[%clk 0:01:18]} 41. g7 {[%clk 0:00:35]}  Qe8 {[%clk 0:01:17]} 42. Ra7 {[%clk 0:00:31]}  h5 {[%clk 0:01:05]} 43. Rf1 {[%clk 0:00:30]}  Qb8 {[%clk 0:00:49]} 44. Rf8+ {[%clk 0:00:28]}  Qxf8 {[%clk 0:00:50]} 45. gxf8=Q+ {[%clk 0:00:29]}  Kxf8 {[%clk 0:00:51]} 46. Rh7 {[%clk 0:00:29]}  Ke8 {[%clk 0:00:50]} 47. Rxh5 {[%clk 0:00:29]}  Kd7 {[%clk 0:00:51]} 48. a4 {[%clk 0:00:28]}  Kc6 {[%clk 0:00:51]} 49. Rh6 {[%clk 0:00:27]}  Kd7 {[%clk 0:00:51]} 50. Rh7+ {[%clk 0:00:27]}  Kc6 {[%clk 0:00:51]} 51. c3 {[%clk 0:00:25]}  d4 {[%clk 0:00:48]} 52. cxd4 {[%clk 0:00:26]}  Kd5 {[%clk 0:00:49]} 53. Rb7 {[%clk 0:00:25]}  Kxd4 {[%clk 0:00:49]} 54. Rxb6 {[%clk 0:00:25]}  Kxe5 {[%clk 0:00:50]} 55. Rb5+ {[%clk 0:00:26]}  Kd4 {[%clk 0:00:50]} 56. Rxa5 {[%clk 0:00:26]}  e5 {[%clk 0:00:51]} 57. Kc2 {[%clk 0:00:27]}  e4 {[%clk 0:00:51]} 58. Ra8 {[%clk 0:00:27]}  e3 {[%clk 0:00:52]} 59. Re8 {[%clk 0:00:27]}  Kc5 {[%clk 0:00:52]} 60. Rxe3 {[%clk 0:00:27]}  Kb4 {[%clk 0:00:53]} 61. Ra3 {[%clk 0:00:27]}  Ka5 {[%clk 0:00:51]} 62. Kc3 {[%clk 0:00:27]} 1-0


[Site "https://www.chess.com"]

[Event "Titled Tuesday Blitz June 27 Early 2023"]
[White "Coelho, Ramyres Santana"]
[Black "Williams, Simon K"]
[WhiteFideId "2120690"]
[BlackFideId "404454"]
[WhiteElo "2224"]
[BlackElo "2602"]
[Result "0-1"]
[Round "1"]
[TimeControl "180+2"]
[Date "2023.06.27"]
[WhiteClock "0:00:20"]
[BlackClock "0:00:08"]
[Board "198"]

1. e4 {[%clk 0:02:54]}  c5 {[%clk 0:02:54]} 2. Nf3 {[%clk 0:02:54]}  d6 {[%clk 0:02:47]} 3. d4 {[%clk 0:02:53]}  cxd4 {[%clk 0:02:47]} 4. Nxd4 {[%clk 0:02:54]}  Nf6 {[%clk 0:02:25]} 5. Nc3 {[%clk 0:02:53]}  g6 {[%clk 0:02:24]} 6. f4 {[%clk 0:02:53]}  Nc6 {[%clk 0:02:23]} 7. Nxc6 {[%clk 0:02:51]}  bxc6 {[%clk 0:02:23]} 8. e5 {[%clk 0:02:51]}  Nd7 {[%clk 0:02:18]} 9. exd6 {[%clk 0:02:50]}  exd6 {[%clk 0:02:18]} 10. Qe2+ {[%clk 0:02:44]}  Be7 {[%clk 0:02:16]} 11. g3 {[%clk 0:02:43]}  O-O {[%clk 0:02:14]} 12. Bg2 {[%clk 0:02:43]}  Bf6 {[%clk 0:02:13]} 13. O-O {[%clk 0:02:42]}  d5 {[%clk 0:02:10]} 14. Qf3 {[%clk 0:02:38]}  Rb8 {[%clk 0:02:04]} 15. Na4 {[%clk 0:02:29]}  Qa5 {[%clk 0:01:59]} 16. Nc3 {[%clk 0:02:23]}  Re8 {[%clk 0:01:55]} 17. Kh1 {[%clk 0:02:20]}  Nc5 {[%clk 0:01:51]} 18. a3 {[%clk 0:02:17]}  Qa6 {[%clk 0:01:42]} 19. b4 {[%clk 0:02:13]}  Ne4 {[%clk 0:01:42]} 20. Bb2 {[%clk 0:02:07]}  Nd2 {[%clk 0:01:35]} 21. Qf2 {[%clk 0:01:59]}  Nxf1 {[%clk 0:01:21]} 22. Bxf1 {[%clk 0:02:00]}  Qb6 {[%clk 0:01:21]} 23. Qf3 {[%clk 0:01:48]}  Bf5 {[%clk 0:01:19]} 24. g4 {[%clk 0:01:17]}  Re3 {[%clk 0:01:15]} 25. Qf2 {[%clk 0:01:08]}  Bxc3 {[%clk 0:01:12]} 26. Bxc3 {[%clk 0:01:07]}  Be4+ {[%clk 0:01:11]} 27. Bg2 {[%clk 0:01:06]}  Rxc3 {[%clk 0:01:10]} 28. Qxb6 {[%clk 0:00:50]}  axb6 {[%clk 0:01:07]} 29. Bxe4 {[%clk 0:00:51]}  dxe4 {[%clk 0:01:07]} 30. Re1 {[%clk 0:00:52]}  e3 {[%clk 0:01:06]} 31. Re2 {[%clk 0:00:51]}  Rxa3 {[%clk 0:01:04]} 32. Kg2 {[%clk 0:00:51]}  Re8 {[%clk 0:01:04]} 33. Kf3 {[%clk 0:00:52]}  Rc3 {[%clk 0:01:03]} 34. h4 {[%clk 0:00:50]}  f5 {[%clk 0:01:02]} 35. gxf5 {[%clk 0:00:47]}  gxf5 {[%clk 0:01:01]} 36. h5 {[%clk 0:00:48]}  Kf7 {[%clk 0:01:01]} 37. h6 {[%clk 0:00:47]}  Kf6 {[%clk 0:00:59]} 38. Kg3 {[%clk 0:00:40]}  Re4 {[%clk 0:00:56]} 39. Kh4 {[%clk 0:00:39]}  Rxf4+ {[%clk 0:00:55]} 40. Kh5 {[%clk 0:00:39]}  Rcc4 {[%clk 0:00:51]} 41. Rh2 {[%clk 0:00:36]}  e2 {[%clk 0:00:51]} 42. b5 {[%clk 0:00:35]}  e1=R {[%clk 0:00:44]} 43. bxc6 {[%clk 0:00:34]}  Ree4 {[%clk 0:00:36]} 44. c7 {[%clk 0:00:22]}  Rh4+ {[%clk 0:00:15]} 45. Rxh4 {[%clk 0:00:20]}  Rxh4# {[%clk 0:00:08]} 0-1


[Site "https://www.chess.com"]